bitfinex-derivatives/quotes_SOLF0:USTF0_20241016
["timestamp","ask_amount","ask_price","bid_price","bid_amount"]
[1729042569330,13.96,154.76,154.69,5.48]
[1729042569930,3.2315,154.74,154.7,3.232]
[1729042570233,23.7211,154.78,154.7,3.232]
[1729042570433,22.36,154.75,154.68,98.09550759]
[1729042570630,6.8397,154.74,154.65,5.48]
[1729042571326,3.2322,154.71,154.67,3.2327]
[1729042572329,3.2318,154.72,154.68,3.2324]
[1729042572531,6.8397,154.74,154.64,5.48]
[1729042573137,3.2318,154.72,154.68,3.2325]
[1729042574139,3.232,154.71,154.67,3.2327]
[1729042574329,3.31372846,154.72,154.62,1.4024]
[1729042574632,3.31372846,154.72,154.61,2.4017]
[1729042574633,23.6667,154.7,154.63,5.48]
[1729042574838,3.2329,154.67,154.63,5.48]
[1729042575036,29.1467,154.7,154.63,5.48]
[1729042575236,3.2329,154.67,154.63,5.48]
[1729042575427,3.2329,154.67,154.63,8.7136]
[1729042576034,3.2331,154.66,154.63,5.48]
[1729042576230,3.2331,154.66,154.62,3.2338]
[1729042576431,29.1467,154.7,154.6,6.5]
[1729042576627,3.2328,154.68,154.63,3.2335]
[1729042577031,3.2328,154.68,154.6,6.5]
[1729042577335,1.3067,154.7,154.6,28.86]
[1729042577536,5.5,154.72,154.63,22.36]
[1729042577832,8.7145398,154.72,154.64,3.2332]
[1729042578032,1.3639,154.71,154.64,3.2332]
[1729042578961,3.2325,154.69,154.64,3.2332]
[1729042581132,3.2328,154.68,154.64,3.2332]
[1729042581338,1.3639,154.71,154.61,5.5]
[1729042581641,3.233,154.66,154.61,5.5]
[1729042582031,1.3051,154.7,154.61,5.5]
[1729042582341,6.8639,154.71,154.61,8.7301772]
[1729042582531,5.5,154.73,154.69,3.2322]
[1729042582737,8.7317,154.73,154.69,3.2322]
[1729042583131,8.7317,154.73,154.65,5.5]
[1729042583132,1.3597,154.74,154.65,27.86]
[1729042583332,1.3597,154.74,154.66,1.3825]
[1729042583542,1.3597,154.74,154.65,5.5]
[1729042583838,3.2319,154.72,154.68,3.2325]
[1729042584035,1.3597,154.74,154.65,5.5]
[1729042584242,22.36,154.72,154.65,5.5]
[1729042584441,1.3226,154.71,154.65,5.5]
[1729042584640,3.2324,154.7,154.62,6.8825]
[1729042585235,3.2324,154.7,154.66,3.2329]
[1729042585643,3.2324,154.7,154.62,6.8825]
[1729042586041,1.3226,154.71,154.62,6.8825]
[1729042586042,1.3226,154.71,154.62,29.2425]
[1729042586542,1.3226,154.71,154.64,3.2333]
[1729042586837,1.3226,154.71,154.62,29.2425]
[1729042587043,3.2317,154.73,154.65,3.2331]
[1729042587247,3.2317,154.73,154.62,29.2425]
[1729042587649,3.2318,154.72,154.68,3.2324]
[1729042589849,3.2315,154.73,154.7,3.2322]
[1729042590550,3.2309,154.76,154.69,3.2323]
[1729042590746,1.3777,154.77,154.67,22.36]
[1729042591137,3.2311,154.75,154.71,3.2318]
[1729042591754,3.2311,154.75,154.67,22.36]
[1729042592143,1.3777,154.77,154.66,5.5]
[1729042592343,3.2317,154.73,154.66,5.5]
[1729042592846,1.3777,154.77,154.66,5.5]
[1729042593346,22.36,154.75,154.68,3.2326]
[1729042593542,5.5,154.74,154.68,3.2326]
[1729042594165,3.232,154.71,154.68,3.2326]
[1729042594842,3.2319,154.72,154.66,5.5]
[1729042595050,5.5,154.74,154.69,3.2322]
[1729042595443,3.2318,154.72,154.69,3.2322]
[1729042595846,3.2318,154.72,154.66,5.5]
[1729042596051,5.5,154.74,154.63,1.423]
[1729042596253,1.3802,154.73,154.64,5.5]
[1729042596746,3.2322,154.7,154.64,5.5]
[1729042596952,3.27707727,154.72,154.63,1.423]
[1729042597150,3.27707727,154.72,154.63,5.5]
[1729042597446,1.445,154.71,154.65,3.2331]
[1729042597650,2.802,154.71,154.65,3.2331]
[1729042597848,3.2331,154.66,154.62,3.2338]
[1729042598053,3.2331,154.66,154.59,2.7597]
[1729042598054,27.86,154.7,154.61,8.79130294]
[1729042598449,27.86,154.7,154.61,5.5]
[1729042598754,3.2329,154.67,154.63,3.2335]
[1729042599350,3.233,154.66,154.63,3.2335]
[1729042599857,3.2334,154.64,154.61,5.5]
[1729042600051,22.36,154.67,154.61,5.5]
[1729042600245,22.36,154.67,154.6,1.0]
[1729042600446,3.2334,154.65,154.61,3.234]
[1729042600648,22.36,154.67,154.6,1.0]
[1729042600850,6.865,154.66,154.6,1.0]
[1729042601350,3.2336,154.64,154.6,4.2341]
[1729042602346,6.865,154.66,154.63,3.2335]
[1729042602543,5.5,154.66,154.63,3.2335]
[1729042602751,5.5,154.66,154.6,1.0]
[1729042603160,8.7332,154.66,154.62,3.2338]
[1729042603660,5.5,154.68,154.6,1.0]
[1729042604162,8.7327,154.68,154.64,3.2333]
[1729042604659,3.2328,154.67,154.64,3.2333]
[1729042605966,8.7326,154.68,154.65,3.2332]
[1729042606671,5.5,154.68,154.65,3.2332]
[1729042607163,8.7326,154.68,154.65,3.2332]
[1729042607369,8.7326,154.68,154.64,3.2334]
[1729042608066,3.2319,154.72,154.64,3.2334]
[1729042608255,1.3638,154.76,154.66,22.36]
[1729042608563,1.3638,154.76,154.67,5.46]
[1729042608762,1.3638,154.76,154.69,3.2322]
[1729042609061,1.3638,154.76,154.67,5.46]
[1729042609662,1.3638,154.76,154.68,22.36]
[1729042609970,1.3638,154.76,154.69,3.29918566]
[1729042610166,1.3638,154.76,154.67,5.46]
[1729042610562,1.3638,154.76,154.72,3.2317]
[1729042611563,1.3638,154.76,154.73,3.2314]
[1729042611767,2.8279,154.78,154.68,1.3483]
[1729042611966,2.8279,154.78,154.69,25.59615007]
[1729042612168,2.8279,154.78,154.71,3.2318]
[1729042612169,6.0584,154.78,154.71,3.2318]
[1729042612471,6.0584,154.78,154.71,5.46]
[1729042612858,6.0584,154.78,154.73,3.2314]
[1729042613783,6.0584,154.78,154.69,27.01575007]
[1729042613784,2.8279,154.78,154.69,4.73214841]
[1729042613970,2.8279,154.78,154.7,5.46]
[1729042614158,3.231,154.76,154.7,8.6921]
[1729042614470,2.8279,154.78,154.7,5.46]
[1729042614663,2.8279,154.78,154.68,1.3483]
[1729042614863,3.2318,154.72,154.68,3.2325]
[1729042615064,22.36,154.76,154.67,5.46]
[1729042615260,3.2319,154.72,154.67,8.6927]
[1729042615467,22.36,154.76,154.67,8.6927]
[1729042615659,22.36,154.76,154.67,3.2327]
[1729042616357,3.2319,154.72,154.68,3.2326]
[1729042616963,22.36,154.76,154.68,3.2326]
[1729042617159,3.232,154.71,154.68,3.2326]
[1729042618577,3.2318,154.72,154.68,3.2326]
[1729042619467,22.36,154.74,154.66,5.46]
[1729042619663,6.7956,154.73,154.62,2.8358]
[1729042619965,3.16929643,154.72,154.64,5.46]
[1729042620463,3.2325,154.69,154.65,3.233]
[1729042620659,22.36,154.71,154.61,69.84]
[1729042620864,3.17770305,154.7,154.62,5.46]
[1729042621072,3.2327,154.68,154.64,3.2333]
[1729042621767,27.82,154.69,154.57,100.84799584]
[1729042622071,27.82,154.69,154.59,5.46]
[1729042622769,22.36,154.66,154.57,98.16059584]
[1729042622976,3.17770305,154.7,154.56,1.0]
[1729042622977,22.36,154.61,154.56,1.0]
[1729042623460,3.2345,154.59,154.56,1.0]
[1729042623870,1.3677,154.6,154.56,1.0]
[1729042624474,3.2345,154.59,154.56,1.0]
[1729042626165,4.602,154.6,154.56,4.2351]
[1729042626882,3.2345,154.59,154.56,1.0]
[1729042628569,3.2343,154.6,154.56,4.2351]
[1729042629469,3.2341,154.61,154.57,3.2349]
[1729042629672,5.46,154.69,154.56,9.6610873]
[1729042629879,3.29428515,154.68,154.57,1.4155]
[1729042630964,5.46,154.68,154.57,1.4155]
[1729042631374,4.5954,154.65,154.6,3.2341]
[1729042631680,4.5954,154.65,154.57,1.4155]
[1729042631984,4.5954,154.65,154.59,3.2344]
[1729042632170,3.2337,154.63,154.57,1.4155]
[1729042632378,1.362,154.65,154.57,1.4155]
[1729042632967,3.2337,154.63,154.59,3.2344]
[1729042633373,3.2339,154.62,154.58,3.2346]
[1729042633573,8.75840859,154.77,154.59,22.36]
[1729042633881,3.2329,154.67,154.63,3.2335]
[1729042635374,3.2331,154.66,154.61,3.2339]
[1729042635578,29.1406,154.72,154.61,3.2339]
[1729042635579,5.54,154.68,154.61,3.2339]
[1729042635986,3.233,154.66,154.61,3.2339]
[1729042636194,5.54,154.68,154.61,3.2339]
[1729042637085,5.54,154.68,154.6,3.2341]
[1729042637277,2.7611,154.67,154.6,3.2341]
[1729042637484,3.2332,154.65,154.6,3.2341]
[1729042637890,2.7611,154.67,154.6,3.2341]
[1729042638190,3.2336,154.64,154.6,3.2341]
[1729042638388,25.1211,154.67,154.58,5.54]
[1729042638699,22.36,154.62,154.56,1.0]
[1729042638885,10.11061982,154.61,154.56,1.0]
[1729042640092,22.36,154.59,154.56,1.0]
[1729042640788,22.36,154.57,154.5,3.2363]
[1729042640985,5.54,154.56,154.5,3.2363]
[1729042641904,3.2355,154.55,154.5,3.2363]
[1729042643984,3.2355,154.55,154.51,4.2361]
[1729042644485,3.2355,154.54,154.51,1.0]
[1729042644695,22.36,154.55,154.47,1.0]
[1729042644996,22.36,154.52,154.47,1.0]
[1729042645199,3.2368,154.48,154.47,1.0]
[1729042645698,3.2376,154.44,154.43,1.0]
[1729042645905,5.54,154.44,154.38,1.0]
[1729042646102,8.85315158,154.44,154.38,1.0]
[1729042646396,5.54,154.44,154.38,1.0]
[1729042646696,5.54,154.43,154.38,1.0]
[1729042646901,8.7779,154.43,154.38,4.2387]
[1729042647307,5.54,154.43,154.38,1.0]
[1729042648194,3.2382,154.42,154.38,1.0]
[1729042648397,5.54,154.43,154.38,1.0]
[1729042649491,3.2383,154.41,154.38,1.0]
[1729042649701,5.54,154.43,154.39,3.2386]
[1729042651201,8.778,154.43,154.38,4.2388]
[1729042651501,5.54,154.43,154.38,1.0]
[1729042652003,3.2387,154.39,154.38,1.0]
[1729042652399,22.36,154.42,154.38,1.0]
[1729042652598,3.2384,154.41,154.38,1.0]
[1729042653599,8.7784,154.41,154.38,1.0]
[1729042654000,3.2384,154.41,154.38,1.0]
[1729042655107,5.54,154.42,154.38,1.0]
[1729042655305,3.2387,154.39,154.38,1.0]
[1729042655508,25.5987,154.39,154.38,1.0]
[1729042655728,3.2395,154.35,154.34,1.0]
[1729042655904,5.54,154.38,154.34,1.0]
[1729042656405,3.2395,154.35,154.34,1.0]
[1729042656707,22.36,154.36,154.3,1.0]
[1729042656927,5.54,154.35,154.3,1.0]
[1729042657204,5.54,154.34,154.3,1.0]
[1729042657403,25.5506829,154.36,154.3,1.0]
[1729042657595,5.54,154.35,154.3,1.0]
[1729042658608,3.2395,154.35,154.31,3.2403]
[1729042659206,1.3348,154.4,154.3,1.0]
[1729042659207,22.36,154.39,154.3,1.0]
[1729042659413,5.54,154.37,154.3,1.0]
[1729042659811,3.2393,154.36,154.32,3.2401]
[1729042660507,3.2398,154.34,154.3,4.2405]
[1729042660710,22.36,154.36,154.3,1.0]
[1729042660913,5.54,154.37,154.3,1.0]
[1729042661614,8.7992,154.37,154.33,3.2398]
[1729042661818,5.56,154.38,154.3,1.0]
[1729042662308,8.799,154.38,154.34,3.2397]
[1729042662714,3.2395,154.36,154.32,3.24]
[1729042665014,5.56,154.38,154.32,3.24]
[1729042665015,3.2395,154.35,154.32,3.24]
[1729042665322,22.36,154.36,154.3,1.0]
[1729042666317,3.2399,154.34,154.3,4.2405]
[1729042666517,8.7999,154.34,154.3,4.2405]
[1729042669622,3.2399,154.33,154.3,4.2405]
[1729042671412,5.56,154.34,154.3,4.2405]
[1729042671615,8.7998,154.34,154.3,4.2405]
[1729042672121,5.56,154.34,154.3,4.2405]
[1729042673411,3.2399,154.33,154.3,4.2405]
[1729042675418,3.2394,154.36,154.33,3.2398]
[1729042675622,5.56,154.35,154.3,1.0]
[1729042676009,8.7996,154.35,154.32,3.2401]
[1729042676532,5.56,154.35,154.3,1.0]
[1729042676722,3.2394,154.36,154.3,1.0]
[1729042676916,8.7994,154.36,154.3,1.0]
[1729042677122,8.7994,154.36,154.33,3.2399]
[1729042677913,5.56,154.36,154.33,3.2399]
[1729042678219,5.56,154.4,154.3,23.36]
[1729042678419,5.56,154.4,154.31,2.6637]
[1729042678619,5.56,154.4,154.36,3.2391]
[1729042678822,5.56,154.4,154.31,2.6637]
[1729042679218,5.56,154.4,154.37,3.239]
[1729042679831,8.7986,154.4,154.36,3.2392]
[1729042680420,5.56,154.4,154.32,14.0]
[1729042680922,3.2383,154.41,154.37,3.2389]
[1729042681319,19.56,154.42,154.32,14.0]
[1729042681817,5.56,154.42,154.31,2.6637]
[1729042682013,3.2386,154.4,154.31,2.6637]
[1729042682220,5.56,154.42,154.31,2.6637]
[1729042682724,6.9895,154.42,154.31,2.6637]
[1729042682927,22.4,154.4,154.31,2.6637]
[1729042683322,3.2387,154.39,154.35,3.2394]
[1729042685127,5.56,154.38,154.31,2.6637]
[1729042685826,1.4295,154.42,154.31,2.6637]
[1729042686122,5.56,154.41,154.31,2.6637]
[1729042686626,2.6873,154.45,154.32,22.4]
[1729042686826,5.56,154.45,154.35,22.4]
[1729042687023,5.56,154.46,154.36,1.4012]
[1729042687222,5.56,154.46,154.37,5.56]
[1729042687528,8.7973,154.46,154.42,3.2379]
[1729042687722,3.2373,154.46,154.42,3.2379]
[1729042688034,3.2372,154.47,154.38,2.8278]
[1729042688529,3.2372,154.47,154.43,3.2377]
[1729042688733,1.4285,154.51,154.41,5.56]
[1729042688932,5.56,154.5,154.41,5.56]
[1729042689229,3.237,154.47,154.41,5.56]
[1729042689730,27.96,154.5,154.41,5.56]
[1729042689929,3.2366,154.49,154.41,5.56]
[1729042690825,27.96,154.5,154.41,5.56]
[1729042691131,31.1964,154.5,154.41,5.56]
[1729042691331,31.1964,154.5,154.45,3.2372]
[1729042691537,31.1964,154.5,154.41,5.56]
[1729042691921,3.2377,154.44,154.34,5.56]
[1729042692126,22.4,154.47,154.34,5.56]
[1729042692127,5.56,154.46,154.34,5.56]
[1729042692322,6.9142,154.46,154.35,3.31067362]
[1729042692531,3.238,154.43,154.38,3.2388]
[1729042692728,3.238,154.43,154.34,5.56]
[1729042693032,6.9142,154.46,154.34,5.56]
[1729042693240,3.2376,154.44,154.4,3.2383]
[1729042693623,3.2371,154.47,154.43,3.2378]
[1729042694832,5.56,154.48,154.39,5.56]
[1729042695028,22.4,154.45,154.35,5.52]
[1729042695440,5.52,154.44,154.35,5.52]
[1729042695635,3.2379,154.43,154.37,3.2389]
[1729042696235,3.2381,154.42,154.37,3.2389]
[1729042697247,3.2379,154.43,154.38,3.2389]
[1729042698840,22.4,154.5,154.37,22.4]
[1729042699139,6.51648767,154.49,154.37,22.4]
[1729042699336,22.4,154.48,154.35,31.20355791]
[1729042699548,22.4,154.48,154.35,27.92]
[1729042699737,22.4,154.48,154.35,31.20582534]
[1729042699934,3.2378,154.44,154.39,3.2385]
[1729042700168,5.52,154.46,154.35,31.20582534]
[1729042700635,5.52,154.46,154.38,3.2388]
[1729042701437,3.238,154.43,154.38,3.2388]
[1729042701636,5.52,154.46,154.35,31.10779555]
[1729042702141,3.2377,154.44,154.35,31.10779555]
[1729042702338,3.2377,154.44,154.39,3.2385]
[1729042703749,3.2378,154.43,154.38,3.2388]
[1729042704542,14.0,154.43,154.35,5.52]
[1729042704848,14.0,154.43,154.33,18.0802]
[1729042705038,14.0,154.41,154.33,9.6002]
[1729042705240,3.2388,154.39,154.34,3.2396]
[1729042705439,3.2388,154.39,154.33,9.6002]
[1729042705841,14.0,154.41,154.33,9.6002]
[1729042706043,3.2391,154.38,154.33,6.8281]
[1729042707586,3.2391,154.38,154.34,3.2397]
[1729042710479,14.0,154.39,154.3,1.0]
[1729042710668,3.2396,154.35,154.31,3.2403]
[1729042710956,14.0,154.37,154.3,1.0]
[1729042711279,3.2401,154.32,154.3,1.0]
[1729042711666,14.0,154.35,154.3,1.0]
[1729042711959,3.2402,154.32,154.3,1.0]
[1729042712155,14.0,154.35,154.3,1.0]
[1729042713878,3.2401,154.33,154.3,1.0]
[1729042714075,14.0,154.35,154.3,1.0]
[1729042714277,1.3129,154.36,154.3,1.0]
[1729042714569,3.2398,154.34,154.3,1.0]
[1729042715385,3.2398,154.34,154.3,4.2405]
[1729042717285,14.0,154.33,154.3,1.0]
[1729042717988,3.2402,154.32,154.3,1.0]
[1729042718194,14.0,154.31,154.25,1.0]
[1729042718492,14.0,154.29,154.25,1.0]
[1729042718790,3.2414,154.27,154.25,1.0]
[1729042718983,22.78116548,154.29,154.25,1.0]
[1729042719179,19.52,154.29,154.25,1.0]
[1729042721383,22.68775825,154.29,154.25,1.0]
[1729042721994,3.2414,154.27,154.25,1.0]
[1729042724958,22.68775825,154.29,154.25,1.0]
[1729042725156,3.2414,154.26,154.25,1.0]
[1729042725761,19.52,154.29,154.25,1.0]
[1729042725957,3.2411,154.28,154.25,1.0]
[1729042726970,4.5716,154.31,154.28,3.2408]
[1729042727269,1.3312,154.31,154.25,1.0]
[1729042728171,4.5716,154.31,154.28,3.241]
[1729042728466,4.5716,154.31,154.25,1.0]
[1729042728467,5.46,154.32,154.25,1.0]
[1729042728769,5.46,154.32,154.25,15.0]
[1729042730482,8.7003,154.32,154.25,15.0]
[1729042730967,5.46,154.32,154.25,1.0]
[1729042731176,3.2408,154.29,154.26,3.2414]
[1729042731469,14.0,154.3,154.25,1.0]
[1729042732374,3.2413,154.27,154.25,1.0]
[1729042741184,17.2414,154.26,154.25,1.0]
[1729042742990,3.2412,154.27,154.25,1.0]
[1729042743196,19.46,154.28,154.25,1.0]
[1729042743398,14.0,154.26,154.25,1.0]
[1729042743890,17.2414,154.26,154.25,1.0]
[1729042744791,5.46,154.28,154.25,1.0]
[1729042745390,3.2412,154.27,154.25,1.0]
[1729042745788,5.46,154.28,154.25,1.0]
[1729042746090,8.7011,154.28,154.25,1.0]
[1729042746691,17.2407,154.3,154.26,3.2412]
[1729042746894,14.0,154.3,154.25,1.0]
[1729042748386,3.2412,154.27,154.25,1.0]
[1729042748995,14.0,154.3,154.25,1.0]
[1729042749194,3.241,154.28,154.25,1.0]
[1729042749592,3.241,154.28,154.25,4.2416]
[1729042750006,4.60861013,154.37,154.25,1.0]
[1729042750206,3.2407,154.3,154.25,1.0]
[1729042750395,14.0,154.33,154.25,1.0]
[1729042750707,3.2409,154.29,154.26,3.2412]
[1729042751207,3.21564834,154.45,154.28,14.0]
[1729042751504,3.238,154.43,154.38,3.2387]
[1729042752095,3.2381,154.42,154.38,3.2387]
[1729042754294,3.2381,154.42,154.37,3.239]
[1729042757011,1.419,154.44,154.36,22.39]
[1729042757207,9.6605,154.5,154.39,22.39]
[1729042757503,12.84652993,154.5,154.4,5.42]
[1729042757706,3.237,154.48,154.43,3.2378]
[1729042757929,12.84652993,154.5,154.4,5.42]
[1729042758102,4.62842993,154.5,154.4,5.42]
[1729042758302,7.86492993,154.5,154.45,3.2372]
[1729042758496,1.4424,154.5,154.4,5.42]
[1729042758702,1.4424,154.5,154.41,5.42]
[1729042758996,23.38652965,154.49,154.39,5.42]
[1729042759201,22.39,154.47,154.36,1.3385]
[1729042759405,3.238,154.43,154.38,8.6588]
[1729042760608,3.2375,154.45,154.38,5.42]
[1729042760812,5.42,154.48,154.38,5.42]
[1729042761005,3.2372,154.46,154.41,3.2381]
[1729042761498,5.42,154.48,154.37,1.3121]
[1729042761703,3.238,154.43,154.38,8.6587]
[1729042761912,22.39,154.47,154.38,5.42]
[1729042762116,22.39,154.47,154.36,4.5776]
[1729042762117,3.2382,154.42,154.36,4.5776]
[1729042762301,22.39,154.47,154.37,5.42]
[1729042762911,0.99669758,154.46,154.37,5.42]
[1729042763111,22.39,154.47,154.37,5.42]
[1729042763406,0.99671763,154.46,154.37,5.42]
[1729042763604,0.99671763,154.46,154.37,8.6589]
[1729042763805,1.3232,154.45,154.37,8.6589]
[1729042764007,1.3232,154.45,154.37,5.42]
[1729042765412,3.2382,154.42,154.38,3.2388]
[1729042765712,1.3232,154.45,154.37,5.42]
[1729042765915,3.2382,154.41,154.37,8.659]
[1729042767011,3.2385,154.4,154.37,5.42]
[1729042768207,1.3232,154.45,154.37,5.42]
[1729042768403,1.3232,154.45,154.38,3.2389]
[1729042768404,3.2382,154.42,154.38,3.2389]
[1729042768601,8.1932,154.5,154.37,27.81]
[1729042768804,0.99651182,154.49,154.37,29.1768]
[1729042769012,0.99651182,154.49,154.4,22.39]
[1729042769317,0.99651182,154.49,154.41,5.42]
[1729042769518,9.6172,154.5,154.41,5.42]
[1729042769708,3.2369,154.48,154.44,3.2376]
[1729042770021,32.0072,154.5,154.37,1.3668]
[1729042770316,22.39,154.47,154.36,9.9977]
[1729042770517,6.4164281,154.46,154.36,6.7585]
[1729042770810,0.9964281,154.45,154.36,6.7585]
[1729042771113,0.9964281,154.45,154.37,3.2389]
[1729042771114,3.2382,154.42,154.37,3.2389]
[1729042771323,3.2382,154.42,154.36,6.7585]
[1729042771515,5.42,154.46,154.4,3.2384]
[1729042772207,3.2378,154.44,154.4,3.2384]
[1729042772413,5.42,154.46,154.4,3.2384]
[1729042772916,3.2376,154.45,154.4,3.2384]
[1729042773116,5.42,154.46,154.4,3.2384]
[1729042773818,3.2377,154.44,154.4,3.2384]
[1729042774415,3.2377,154.44,154.36,29.1485]
[1729042774416,3.2375,154.45,154.41,3.2381]
[1729042774618,5.42,154.49,154.4,5.42]
[1729042774814,0.99649529,154.48,154.41,5.42]
[1729042775015,3.2371,154.47,154.43,3.2377]
[1729042775723,3.237,154.47,154.44,3.2375]
[1729042776221,3.237,154.47,154.41,5.42]
[1729042776423,3.2373,154.46,154.43,3.2378]
[1729042777015,3.2369,154.48,154.41,27.81]
[1729042777418,6.42,154.53,154.44,3.2375]
[1729042777622,6.42,154.53,154.41,27.81]
[1729042778122,3.2371,154.47,154.41,27.81]
[1729042778317,6.42,154.53,154.41,27.81]
[1729042778625,3.2368,154.48,154.44,3.2375]
[1729042778820,1.0,154.53,154.41,27.81]
[1729042779031,6.42,154.53,154.41,27.81]
[1729042779328,0.99639073,154.52,154.4,6.7844]
[1729042779526,4.27100572,154.52,154.4,6.7844]
[1729042779726,0.99644894,154.51,154.4,6.7844]
[1729042779927,3.2376,154.45,154.41,3.2381]
[1729042780112,28.81,154.53,154.4,10.03472499]
[1729042780318,3.2366,154.49,154.44,3.2376]
[1729042780518,3.26263193,154.52,154.44,3.2376]
[1729042780828,6.42,154.53,154.44,5.42]
[1729042781120,3.2362,154.51,154.44,5.42]
[1729042781326,6.42,154.53,154.44,6.7958]
[1729042781629,3.2364,154.5,154.46,3.237]
[1729042785589,6.42,154.53,154.44,6.7958]
[1729042785713,6.42,154.53,154.42,5.42]
[1729042785914,0.99637791,154.52,154.42,5.42]
[1729042786119,3.2374,154.46,154.42,8.658]
[1729042787044,3.2376,154.44,154.42,5.48]
[1729042787332,3.1894661,154.51,154.42,5.48]
[1729042787333,22.39,154.51,154.42,5.48]
[1729042787720,3.2375,154.45,154.42,8.718]
[1729042788432,3.2375,154.45,154.42,5.48]
[1729042789135,3.2375,154.45,154.41,3.2382]
[1729042790532,25.68771281,154.51,154.4,6.8444]
[1729042790731,25.68771281,154.51,154.4,5.48]
[1729042791029,0.99649236,154.5,154.4,5.48]
[1729042791230,5.48,154.49,154.4,5.48]
[1729042791659,5.48,154.49,154.41,22.39]
[1729042791826,3.2371,154.47,154.43,3.2377]
[1729042793128,3.2372,154.46,154.43,3.2377]
[1729042795436,5.48,154.49,154.43,3.2377]
[1729042795636,3.237,154.47,154.44,3.2376]
[1729042796333,3.2364,154.5,154.46,3.237]
[1729042796531,9.96624022,154.52,154.44,13.99]
[1729042796725,9.96624022,154.52,154.44,19.47]
[1729042796931,3.237,154.47,154.44,5.48]
[1729042798435,3.237,154.47,154.44,8.7176]
[1729042799827,3.2366,154.49,154.42,17.228]
[1729042800033,13.99,154.47,154.39,1.3212]
[1729042800224,13.99,154.47,154.37,15.3048]
[1729042800225,13.99,154.47,154.37,13.99]
[1729042800428,3.2385,154.4,154.37,5.48]
[1729042800628,13.99,154.45,154.37,5.48]
[1729042800629,3.18802522,154.44,154.37,5.48]
[1729042800830,13.99,154.42,154.34,1.4164]
[1729042801131,13.99,154.42,154.34,4.656]
[1729042801330,13.99,154.42,154.34,1.4164]
[1729042801830,13.99,154.42,154.34,6.8964]
[1729042802040,3.239,154.38,154.34,10.136]
[1729042802235,13.99,154.4,154.32,5.48]
[1729042803034,3.239,154.38,154.32,8.72]
[1729042803339,13.99,154.42,154.32,5.48]
[1729042803834,3.2389,154.38,154.34,3.2396]
[1729042804039,31.13604161,154.44,154.32,5.48]
[1729042804731,0.99687273,154.43,154.32,5.48]
[1729042805124,3.239,154.38,154.34,3.2397]
[1729042805346,5.48,154.4,154.31,5.48]
[1729042805545,22.4,154.39,154.29,5.48]
[1729042805742,26.5274,154.39,154.29,5.48]
[1729042807039,26.5274,154.39,154.31,3.2402]
[1729042807438,3.2392,154.37,154.31,3.2402]
[1729042807736,4.1274,154.39,154.33,3.2399]